fUST/lending_fUST_20250830
["ID","MTS","AMOUNT","RATE_DAILY","PERIOD"]
[382091896,1756499451832,-153.710893,0.0002799,7]
[382091898,1756499451841,-225.149642,0.0002799,7]
[382091900,1756499451850,-1127.251159,0.0002799,7]
[382091902,1756499451859,-306.016088,0.0002799,7]
[382091904,1756499451869,-306.016082,0.0002799,7]
[382091906,1756499451877,-1127.251159,0.0002799,7]
[382091908,1756499451886,-1127.251159,0.0002799,7]
[382091909,1756499451896,-1127.25116,0.0002799,7]
[382091911,1756499451906,-366.463272,0.0002799,7]
[382091913,1756499451915,-366.463272,0.0002799,7]
[382091915,1756499451924,-366.463272,0.0002799,7]
[382091917,1756499451933,-151.0,0.0002799,7]
[382091919,1756499451943,-366.463267,0.0002799,7]
[382091921,1756499451953,-284.542449,0.0002799,7]
[382091923,1756499451962,-3450.08622096,0.00028,10]
[382091925,1756499451972,-415.80072606,0.00028,120]
[382091927,1756499451981,-151.0,0.00028,7]
[382091929,1756499451991,-151.0,0.00028,2]
[382091931,1756499452000,-151.0,0.00028,2]
[382091933,1756499452010,-151.0,0.00028,2]
[382091935,1756499452019,-151.0,0.00028,7]
[382091937,1756499452028,-151.0,0.00028,7]
[382091939,1756499452037,-152.59835,0.00028,7]
[382091941,1756499452047,-152.59835,0.00028,7]
[382091943,1756499452056,-152.59835,0.00028,7]
[382091945,1756499452066,-152.59835,0.00028,7]
[382091947,1756499452075,-151.0,0.00028,7]
[382091949,1756499452084,-151.0,0.00028,7]
[382091951,1756499452093,-151.0,0.00028,7]
[382091953,1756499452102,-278.262366,0.00028,7]
[382091955,1756499452112,-151.0,0.00028,7]
[382091957,1756499452121,-151.0,0.00028,7]
[382091959,1756499452130,-151.0,0.00028,7]
[382091961,1756499452140,-151.0,0.00028,7]
[382091963,1756499452149,-151.0,0.00028,7]
[382091965,1756499452158,-151.0,0.00028,7]
[382091967,1756499452169,-151.0,0.00028,7]
[382091969,1756499452177,-151.0,0.00028,7]
[382091971,1756499452187,-151.0,0.00028,7]
[382091973,1756499452196,-151.0,0.00028,7]
[382091975,1756499452205,-151.0,0.00028,7]
[382091977,1756499452214,-151.0,0.00028,7]
[382091979,1756499452223,-159.540892,0.00028,7]
[382091981,1756499452233,-221.477214,0.00028,7]
[382091983,1756499452244,-221.477214,0.00028,7]
[382091985,1756499452253,-151.0,0.00028,7]
[382091987,1756499452263,-221.477214,0.00028,7]
[382091989,1756499452272,-221.477207,0.00028,7]
[382091991,1756499452281,-185.573216,0.00028,7]
[382091993,1756499452290,-185.573216,0.00028,7]
[382091995,1756499452299,-185.573216,0.00028,7]
[382091997,1756499452308,-185.573226,0.00028,7]
[382091998,1756499452317,-220.590973,0.00028,7]
[382092001,1756499452327,-220.590973,0.00028,7]
[382092003,1756499452336,-220.590973,0.00028,7]
[382092004,1756499452346,-220.59098,0.00028,7]
[382092006,1756499452355,-151.0,0.00028,7]
[382092008,1756499452365,-151.0,0.00028,7]
[382092010,1756499452375,-151.0,0.00028,7]
[382092012,1756499452385,-193.33219,0.00028,7]
[382092014,1756499452395,-193.33219,0.00028,7]
[382092016,1756499452405,-193.33219,0.00028,7]
[382092018,1756499452415,-193.332197,0.00028,7]
[382092020,1756499452424,-49999.99999903,0.00028,7]
[382092022,1756499452433,-151.0,0.00028,7]
[382092024,1756499452443,-277.52443,0.00028,7]
[382092026,1756499452452,-157.034756,0.00028,7]
[382092028,1756499452461,-157.034756,0.00028,7]
[382092030,1756499452471,-157.034756,0.00028,7]
[382092032,1756499452480,-157.034766,0.00028,7]
[382092034,1756499452491,-377.876195,0.00028,7]
[382092036,1756499452500,-377.876195,0.00028,7]
[382092038,1756499452510,-377.876195,0.00028,7]
[382092041,1756499452520,-377.876188,0.00028,7]
[382092042,1756499452530,-151.0,0.00028,7]
[382092045,1756499452539,-153.459432,0.00028,7]
[382092046,1756499452548,-225.149642,0.00028,7]
[382092048,1756499452558,-162.361126,0.00028,7]
[382092051,1756499452568,-225.149642,0.00028,7]
[382092053,1756499452578,-225.149642,0.00028,7]
[382092055,1756499452588,-225.149637,0.00028,7]
[382092057,1756499452598,-1220.944733,0.00028,2]
[382092059,1756499452607,-100000.0,0.00028,7]
[382092061,1756499452616,-162.33234397,0.00028058,5]
[382092062,1756499452625,-614.54043906,0.00028073,5]
[382092064,1756499452635,-329.41415949,0.00028088,2]
[382092067,1756499452644,-2647.45154717,0.00028088,2]
[382092069,1756499452654,-151.0,0.00028195,2]
[382092071,1756499452663,-502.07979579,0.00028221,5]
[382092072,1756499452673,-1000.0,0.00028221,5]
[382092074,1756499452682,-1000.0,0.00028221,5]
[382092076,1756499452692,-1000.0,0.00028221,5]
[382092079,1756499452701,-1000.0,0.00028221,5]
[382092080,1756499452710,-1000.0,0.00028221,5]
[382092082,1756499452720,-152.83,0.00028261,15]
[382092084,1756499452734,-152.1,0.00028261,15]
[382092086,1756499452743,-155.6,0.00028265,15]
[382092088,1756499452752,-164.32,0.00028265,15]
[382092090,1756499452762,-201.93286099,0.00028304,2]
[382092092,1756499452772,-154.52,0.00028341,15]
[382092094,1756499452781,-152.83,0.00028361,15]
[382092096,1756499452790,-152.1,0.00028361,15]
[382092098,1756499452800,-155.61401259,0.00028365,15]
[382092100,1756499452809,-164.32,0.00028365,15]
[382092102,1756499452818,-154.84,0.0002837,15]
[382092104,1756499452828,-154.84,0.0002837,15]
[382092106,1756499452837,-154.84,0.00028385,15]
[382092108,1756499452846,-154.52,0.00028441,15]
[382092110,1756499452856,-152.83,0.00028461,15]
[382092112,1756499452865,-152.1,0.00028461,15]
[382092114,1756499452875,-164.32,0.00028465,15]
[382092116,1756499452884,-1526.17971562,0.00028468,5]
[382092118,1756499452893,-1500.0,0.00028468,5]
[382092120,1756499452902,-1500.0,0.00028468,5]
[382092122,1756499452911,-223.0,0.00028469,2]
[382092123,1756499452920,-154.84,0.0002847,15]
[382092125,1756499452929,-154.84,0.0002847,15]
[382092127,1756499452939,-360.0,0.00028482,2]
[382092129,1756499452948,-1589.62574992,0.000285,7]
[382092131,1756499452958,-1000.0,0.00028521,2]
[382092133,1756499452968,-300.0,0.00028521,5]
[382092135,1756499452977,-1000.0,0.00028521,5]
[382092137,1756499452986,-154.52,0.00028541,15]
[382092139,1756499452995,-152.83,0.00028561,15]
[382092141,1756499453004,-152.1,0.00028561,15]
[382092143,1756499453014,-164.32,0.00028565,15]
[382092145,1756499453023,-154.84,0.0002857,15]
[382092147,1756499453032,-154.52,0.00028641,15]
[382092149,1756499453041,-152.83,0.00028661,15]
[382092151,1756499453051,-152.1,0.00028661,15]
[382092153,1756499453060,-164.32,0.00028665,15]
[382092155,1756499453069,-154.84,0.0002867,15]
[382092157,1756499453079,-154.52,0.00028741,15]
[382092159,1756499453088,-152.83,0.00028761,15]
[382092161,1756499453097,-152.1,0.00028761,15]
[382092163,1756499453106,-164.32,0.00028765,15]
[382092165,1756499453116,-1500.0,0.00028768,5]
[382092167,1756499453125,-1500.0,0.00028768,5]
[382092169,1756499453134,-1500.0,0.00028768,5]
[382092171,1756499453143,-556.73635836,0.00028768,5]
[382092173,1756499453152,-1500.0,0.00028768,5]
[382092175,1756499453163,-154.84,0.0002877,15]
[382092177,1756499453172,-154.52,0.00028841,15]
[382092179,1756499453181,-152.83,0.00028861,15]
[382092181,1756499453191,-152.13,0.00028861,15]
[382092183,1756499453200,-155.193053,0.00028862,2]
[382092185,1756499453210,-164.32,0.00028865,15]
[382092187,1756499453220,-154.84,0.0002887,15]
[382092189,1756499453229,-155.193053,0.00028897,5]
[382092191,1756499453239,-151.0,0.000289,18]
[382092193,1756499453249,-2351.0,0.00028927,2]
[382092196,1756499453259,-587.0,0.00028928,2]
[382092197,1756499453268,-154.52,0.00028941,15]
[382092199,1756499453277,-152.83,0.00028961,15]
[382092201,1756499453286,-164.32,0.00028965,15]
[382092203,1756499453296,-154.84,0.0002897,15]
[382092206,1756499453305,-150.0,0.00028973,5]
[382092208,1756499453317,-30000.0,0.00029,14]
[382092209,1756499453327,-69435.35,0.00029,7]
[382092211,1756499453336,-217.30324474,0.00029,10]
[382092213,1756499453345,-151.0,0.00029,7]
[382092215,1756499453355,-151.0,0.00029,2]
[382092218,1756499453364,-151.0,0.00029,2]
[382092219,1756499453374,-151.0,0.00029,2]
[382092222,1756499453383,-151.0,0.00029,7]
[382092223,1756499453392,-151.0,0.00029,7]
[382092225,1756499453403,-152.59835,0.00029,7]
[382092228,1756499453413,-152.59835,0.00029,7]
[382092230,1756499453425,-152.59835,0.00029,7]
[382092232,1756499453435,-152.598344,0.00029,7]
[382092234,1756499453444,-151.0,0.00029,7]
[382092236,1756499453454,-8794.37640032,0.00029008,120]
[382092237,1756499453463,-2700.0,0.0002901,7]
[382092240,1756499453473,-784.12600008,0.00029016,5]
[382092242,1756499453483,-2000.0,0.00029016,5]
[382092244,1756499453492,-460.0,0.0002903,2]
[382092246,1756499453502,-154.52,0.00029041,15]
[382092247,1756499453512,-152.83,0.00029061,15]
[382092249,1756499453521,-164.32,0.00029065,15]
[382092251,1756499453531,-1500.0,0.00029068,2]
[382092253,1756499453540,-450.0,0.00029068,5]
[382092256,1756499453550,-1500.0,0.00029068,5]
[382092257,1756499453560,-11642.74,0.000291,7]
[382092260,1756499453570,-154.52,0.00029141,15]
[382092261,1756499453581,-164.34333059,0.00029165,15]
[382092263,1756499453590,-151.0,0.000292,19]
[382092265,1756499453600,-500.0,0.00029213,2]
[382092267,1756499453610,-154.52,0.00029241,15]
[382092269,1756499453619,-155.193053,0.00029278,2]
[382092271,1756499453628,-2757.0033206,0.000293,2]
[382092273,1756499453637,-155.193053,0.00029302,5]
[382092275,1756499453647,-750.30674137,0.00029316,5]
[382092277,1756499453656,-2000.0,0.00029316,5]
[382092279,1756499453665,-507.41050581,0.00029316,5]
[382092281,1756499453675,-1003.53147026,0.00029316,5]
[382092283,1756499453684,-154.52,0.00029341,15]
[382092285,1756499453693,-160.0,0.00029417,2]
[382092287,1756499453703,-845.57753514,0.00029417,2]
[382092289,1756499453712,-529.77114056,0.00029426,2]
[382092291,1756499453727,-160.0,0.00029426,2]
[382092293,1756499453737,-160.0,0.00029426,2]
[382092295,1756499453746,-232.6790651,0.00029426,2]
[382092297,1756499453755,-160.0,0.0002944,2]
[382092299,1756499453765,-154.52,0.00029441,15]
[382092301,1756499453776,-160.0,0.00029461,2]
[382092303,1756499453785,-1263.7459239,0.000295,120]
[382092305,1756499453794,-151.0,0.000295,17]
[382092307,1756499453810,-250.0,0.00029521,5]
[382092309,1756499453819,-154.52,0.00029541,15]
[382092311,1756499453829,-500.0,0.00029564,5]
[382092313,1756499453838,-560.0,0.00029577,2]
[382092315,1756499453848,-1268.436455,0.00029589,120]
[382092317,1756499453857,-1003.73719567,0.00029616,2]
[382092319,1756499453867,-151.71632553,0.00029616,5]
[382092321,1756499453876,-2000.0,0.00029616,5]
[382092323,1756499453886,-154.52,0.00029641,15]
[382092325,1756499453897,-160.0,0.00029651,2]
[382092327,1756499453908,-343.65875359,0.00029673,2]
[382092329,1756499453918,-155.193053,0.00029694,2]
[382092332,1756499453927,-154.52,0.00029741,15]
[382092334,1756499453936,-151.0,0.000298,12]
[382092336,1756499453946,-864.0,0.00029803,20]
[382092338,1756499453955,-154.52,0.00029841,15]
[382092340,1756499453964,-2500.0,0.00029864,5]
[382092342,1756499453975,-155.193053,0.00029926,7]
[382092344,1756499453985,-154.52,0.00029941,15]
[382092345,1756499453994,-155.193053,0.00029988,7]
[382092348,1756499454003,-1567.51249732,0.0003,10]
[382092350,1756499454013,-417.15472785,0.0003,120]
[382092351,1756499454022,-4000.0,0.0003,4]
[382092353,1756499454031,-154.52,0.00030041,15]
[382092356,1756499454041,-250.6713272,0.00030068,5]
[382092358,1756499454050,-151.0,0.000301,19]
[382092359,1756499454060,-660.0,0.00030125,2]
[382092361,1756499454069,-161.706,0.00030136,2]
[382092364,1756499454079,-154.52,0.00030141,15]
[382092365,1756499454088,-2500.0,0.00030164,5]
[382092368,1756499454098,-17734.6046334,0.00030225,2]
[382092370,1756499454107,-154.52,0.00030241,15]
[382092372,1756499454117,-5852.44,0.000303,7]
[382092374,1756499454127,-154.52,0.00030341,15]
[382092376,1756499454136,-151.0,0.000304,17]
[382092378,1756499454145,-1004.49967332,0.00030412,5]
[382092380,1756499454154,-154.52,0.00030441,15]
[382092382,1756499454164,-173.80946417,0.000305,2]
[382092384,1756499454174,-154.57577273,0.00030541,15]
[382092386,1756499454183,-500.0,0.00030573,5]
[382092388,1756499454193,-69435.35,0.000306,7]
[382092390,1756499454202,-760.0,0.00030673,2]
[382092392,1756499454211,-11642.74,0.000307,7]
[382092393,1756499454221,-151.0,0.000307,17]
[382092396,1756499454230,-151.0,0.000307,19]
[382092397,1756499454241,-1000.0,0.00030712,5]
[382092400,1756499454251,-44821.0231455,0.0003079,30]
[382092402,1756499454261,-500.0,0.00030793,7]
[382092404,1756499454271,-199.0,0.000308,120]
[382092406,1756499454280,-199.0,0.000308,120]
[382092407,1756499454289,-593.30565199,0.00030804,7]
[382092409,1756499454298,-1258.86349799,0.00030879,2]
[382092412,1756499454308,-199.0,0.000309,120]
[382092413,1756499454318,-199.0,0.000309,120]
[382092416,1756499454328,-856.9784594,0.00030918,2]
[382092418,1756499454338,-1100.599274,0.00030918,2]
[382092420,1756499454347,-800.0,0.00030942,2]
[382092422,1756499454356,-156.0,0.00031,120]
[382092424,1756499454366,-160.0,0.00031,30]
[382092426,1756499454375,-232.6790651,0.00031,30]
[382092428,1756499454384,-232.6790651,0.00031,120]
[382092430,1756499454393,-217.30324474,0.00031,30]
[382092432,1756499454402,-217.30324474,0.00031,120]
[382092434,1756499454412,-417.15472785,0.00031,30]
[382092450,1756499454584,-1567.1199846,0.00031004,2]
[382092451,1756499454595,-176040.6129205,0.00031004,20]
[382092452,1756499454605,-3051.71071731,0.00031004,2]
[382092453,1756499454614,-706.16649153,0.00031004,45]
[382092454,1756499454624,-1196.00063208,0.00031004,30]
[382092455,1756499454634,-5983.58640972,0.00031004,7]
[382092456,1756499454644,-1662.75625168,0.00031004,30]
[382092457,1756499454653,-2072.0,0.00031004,7]
[382092458,1756499454663,-11097.43674832,0.00031004,7]
[382092459,1756499454673,-1462.04354562,0.00031004,7]
[382092460,1756499454682,-479.999999,0.00031004,2]
[382092461,1756499454692,-1439.999999,0.00031004,2]
[382092462,1756499454702,-959.999999,0.00031004,2]
[382092464,1756499454712,-1000.0,0.00031121,5]
[382092466,1756499454721,-153.000502,0.00031145,2]
[382092468,1756499454733,-860.0,0.00031221,2]
[382092470,1756499454743,-3957.125172,0.00031297,2]
[382092472,1756499454752,-500.0,0.00031327,7]
[382092474,1756499454761,-1571.0,0.00031349,3]
[382092476,1756499454772,-823.0,0.0003135,2]
[382092478,1756499454783,-786.98823365,0.00031668,5]
[382092480,1756499454793,-19356.47061884,0.00031677,7]
[382092482,1756499454810,-154.8472562,0.00031696,30]
[382092484,1756499454820,-367.3374763,0.00031696,30]
[382092486,1756499454829,-266.4132444,0.00031696,30]
[382092488,1756499454838,-153.0,0.00031696,30]
[382092490,1756499454847,-153.0,0.00031696,30]
[382092492,1756499454857,-153.0,0.00031696,30]
[382092494,1756499454866,-191.2177409,0.00031704,2]
[382092496,1756499454876,-245.5768922,0.00031704,2]
[382092498,1756499454886,-960.0,0.00031769,2]
[382092500,1756499454897,-500.0,0.00031894,7]
[382092502,1756499454906,-9211.17241446,0.000319,2]
[382092504,1756499454916,-150759.67234134,0.00032,60]
[382092507,1756499454937,-4576.767126,0.00032,60]
[382093744,1756499467816,828.0,0.0002405,2]
[382094881,1756499715268,166.534355,0.00013699,2]
[382094888,1756499808527,2000.0,0.00027397,120]
[382094914,1756500142770,388.430542,0.000199,2]
[382094941,1756500318277,330.16596072,0.000199,2]
[382094955,1756500506811,286.14383264,0.000199,2]
[382095013,1756500637999,-2245.00111856,0.00024589,2]
[382095015,1756500638009,-235.19655807,0.00024988,2]
[382095017,1756500638023,-160.0,0.00026992,2]
[382095019,1756500638037,-286.14383264,0.00027098,7]
[382095021,1756500638046,-300.0,0.00027392,2]
[382095023,1756500638055,-300.0,0.00027392,2]
[382095025,1756500638065,-1062.0,0.00027392,2]
[382095027,1756500638076,-1200.0,0.00027393,2]
[382095029,1756500638086,-182.152,0.00027395,16]
[382095031,1756500638095,-500.0,0.00027397,5]
[382095033,1756500638104,-199.0,0.000279,120]
[382095035,1756500638114,-199.0,0.000279,120]
[382095037,1756500638124,-39919.80962475,0.000279,2]
[382095039,1756500638135,-271.47355647,0.000279,2]
[382095041,1756500638147,-462.215,0.000279,2]
[382095042,1756500638158,-964.53441776,0.000279,2]
[382095043,1756500638174,-1425.0468128,0.000279,2]
[382095045,1756500638186,-601.9999984,0.000279,2]
[382095049,1756500638219,-3101.67934054,0.000279,2]
[382095132,1756500640164,-3253.24124928,0.000279,2]
[382095134,1756500640174,-300.0,0.00027944,20]
[382095137,1756500640183,-300.0,0.00027944,20]
[382095139,1756500640192,-300.0,0.00027944,20]
[382095141,1756500640202,-300.0,0.00027944,20]
[382095143,1756500640211,-300.0,0.00027944,20]
[382095145,1756500640221,-300.0,0.00027944,20]
[382095147,1756500640230,-300.0,0.00027944,20]
[382095149,1756500640239,-300.0,0.00027944,20]
[382095151,1756500640249,-300.0,0.00027944,20]
[382095153,1756500640258,-300.0,0.00027944,20]
[382095155,1756500640270,-300.0,0.00027944,20]
[382095157,1756500640279,-300.0,0.00027944,20]
[382095159,1756500640289,-300.0,0.00027944,20]
[382095161,1756500640298,-300.0,0.00027944,20]
[382095163,1756500640307,-300.0,0.00027944,20]
[382095165,1756500640317,-425.57542551,0.00028,10]
[382095167,1756500640326,-425.57542551,0.00028,10]
[382095169,1756500640335,-156.01,0.00028285,15]
[382095171,1756500640345,-217.30324474,0.0002837,2]
[382095173,1756500640355,-160.0,0.0002837,2]
[382095175,1756500640363,-160.0,0.0002837,2]
[382095177,1756500640373,-425.57542551,0.00028371,2]
[382095179,1756500640382,-160.0,0.00028371,2]
[382095181,1756500640391,-845.57753514,0.00028371,2]
[382095184,1756500640401,-529.77114056,0.00028371,2]
[382095185,1756500640412,-156.01,0.00028385,15]
[382095188,1756500640421,-160.0,0.00028385,2]
[382095190,1756500640431,-156.01,0.00028485,15]
[382095192,1756500640440,-600.0,0.00028502,20]
[382095194,1756500640450,-156.01,0.00028585,15]
[382095195,1756500640459,-156.01,0.00028685,15]
[382095197,1756500640468,-156.02727825,0.00028785,15]
[382095199,1756500640477,-786.78968627,0.00028789,2]
[382095201,1756500640487,-946.09,0.0002887,10]
[382095203,1756500640496,-788.41,0.0002887,10]
[382095205,1756500640506,-500.0,0.00028873,5]
[382095207,1756500640516,-500.0,0.00028873,5]
[382095209,1756500640526,-397.95830618,0.00028873,5]
[382095211,1756500640535,-200.0,0.00028873,5]
[382095212,1756500640545,-151.0,0.00028873,2]
[382095214,1756500640554,-151.0,0.00028873,2]
[382095216,1756500640564,-151.0,0.00028873,2]
[382095218,1756500640573,-151.0,0.00028873,2]
[382095220,1756500640583,-151.0,0.00028873,2]
[382095222,1756500640592,-151.0,0.00028873,2]
[382095224,1756500640601,-151.0,0.00028873,2]
[382095225,1756500640611,-151.0,0.00028873,2]
[382095227,1756500640620,-151.0,0.00028873,2]
[382095229,1756500640629,-151.0,0.00028873,2]
[382095230,1756500640639,-151.0,0.00028873,2]
[382095231,1756500640648,-151.0,0.00028873,2]
[382095232,1756500640657,-151.0,0.00028873,2]
[382095233,1756500640666,-500.0,0.00028879,2]
[382095234,1756500640676,-179.06389282,0.00028879,2]
[382095236,1756500640685,-554.15056564,0.00028879,2]
[382095238,1756500640694,-500.0,0.00028879,2]
[382095240,1756500640704,-500.0,0.00028879,2]
[382095242,1756500640714,-500.0,0.00028879,2]
[382095244,1756500640723,-500.0,0.00028879,2]
[382095246,1756500640733,-222548.858706,0.0002888,2]
[382095248,1756500640742,-315.73100773,0.00028889,2]
[382095250,1756500640751,-153456.89505943,0.0002889,2]
[382095493,1756500643018,-2064.42557291,0.00027621,2]
[382095495,1756500643028,-16599.25087349,0.0002889,2]
[382095826,1756500646314,-27900.0,0.0002889,2]
[382098134,1756500680203,280.35334028,0.000199,2]
[382098135,1756500680628,280.35334028,0.00022985,2]
[382098143,1756500753723,3308.0,0.0002,10]
[382098155,1756500978410,1451.91659202,0.0002405,2]
[382098157,1756501023222,162.06972335,0.00023584,2]
[382098158,1756501047265,322.01873396,0.000199,2]
[382098173,1756501233422,279.08290276,0.000199,2]
[382098190,1756501687714,165.33868,0.00013699,2]
[382098207,1756501832364,-220.0,0.00025088,2]
[382098208,1756501832375,-165.33868,0.00027397,2]
[382098209,1756501832384,-500.0,0.00027397,5]
[382098210,1756501832394,-178.553047,0.00027474,2]
[382098211,1756501832404,-232.6790651,0.00028679,2]
[382098212,1756501832414,-500.0,0.00028763,2]
[382098213,1756501832423,-300.0,0.00028768,2]
[382098214,1756501832434,-240.0,0.00028768,2]
[382098215,1756501832443,-657.0,0.00028769,10]
[382098216,1756501832453,-547.5,0.00028769,10]
[382098217,1756501832462,-194.72792766,0.00028772,2]
[382098218,1756501832471,-151.0,0.00028772,2]
[382098219,1756501832481,-151.0,0.00028772,2]
[382098220,1756501832491,-151.0,0.00028772,2]
[382098221,1756501832500,-151.0,0.00028772,2]
[382098222,1756501832510,-151.0,0.00028772,2]
[382098223,1756501832520,-151.0,0.00028772,2]
[382098224,1756501832529,-151.0,0.00028772,2]
[382098225,1756501832539,-151.0,0.00028772,2]
[382098226,1756501832549,-6619.78478,0.00028772,2]
[382098227,1756501832558,-151.0,0.00028772,2]
[382098228,1756501832567,-151.0,0.00028772,2]
[382098229,1756501832577,-151.0,0.00028772,2]
[382098230,1756501832586,-280.52556936,0.00028772,2]
[382098231,1756501832595,-529.77114056,0.00028774,2]
[382098232,1756501832605,-845.57753514,0.00028774,2]
[382098233,1756501832614,-50000.0,0.00028777,2]
[382098234,1756501832624,-414.0,0.00028777,2]
[382098235,1756501832634,-55639.96945907,0.00028779,2]
[382098272,1756501838260,-220.0,0.00025088,2]
[382098274,1756501838270,-217.30324474,0.00028774,2]
[382098276,1756501838279,-500.0,0.00028776,2]
[382098278,1756501838289,-165.99479489,0.00028776,2]
[382098280,1756501838298,-528.24130685,0.00028776,2]
[382098282,1756501838308,-276.6270146,0.00028776,2]
[382098284,1756501838320,-223.3729854,0.00028776,2]
[382098286,1756501838331,-204.34208241,0.00028776,2]
[382098288,1756501838340,-580.28493219,0.00028776,2]
[382098297,1756501838423,-1.8794806,0.00028776,2]
[382098299,1756501838433,-500.0,0.00028776,2]
[382098301,1756501838443,-500.0,0.00028776,2]
[382098303,1756501838453,-306.13812791,0.00028776,2]
[382098305,1756501838462,-500.0,0.00028776,2]
[382098307,1756501838471,-500.0,0.00028776,2]
[382098309,1756501838481,-500.0,0.00028776,2]
[382098311,1756501838490,-500.0,0.00028776,2]
[382098313,1756501838500,-2591.9344927,0.00028779,2]
[382098316,1756501838513,-1138.2000001,0.00028779,2]
[382098319,1756501838533,-25842.67221941,0.00028779,2]
[382098321,1756501838544,-638.55,0.00028779,2]
[382098323,1756501838556,-567.34336685,0.00028779,2]
[382098325,1756501838567,-294.72485555,0.00028779,2]
[382098328,1756501838584,-1040.1656832,0.00028779,2]
[382098524,1756501840346,-36906.31265354,0.00028779,2]
[382098527,1756501840363,-8070.25,0.00028779,2]
[382098532,1756501840403,-266.85358645,0.00028779,2]
[382098807,1756501843195,-456.25,0.00028779,10]
[382098809,1756501843206,-532.33890613,0.00028779,2]
[382098811,1756501843215,-783.5599923,0.00028789,2]
[382098813,1756501843225,-54369.28715117,0.00028789,2]
[382098825,1756501843342,-255646.19908709,0.00028789,2]
[382098827,1756501843353,-540.05946449,0.00028789,2]
[382098830,1756501843367,-1106.41450449,0.00028789,2]
[382098832,1756501843378,-1011.45408165,0.00028789,2]
[382099114,1756501846330,-8652.06678032,0.00028789,2]
[382099116,1756501846343,-1898.1888978,0.00028789,2]
[382099133,1756501846498,-4032.75,0.00028789,2]
[382099135,1756501846509,-3808.74243182,0.00028789,2]
[382101376,1756501950015,30000.0,0.00021,30]
[382101377,1756501965284,215.3801156,0.000199,2]
[382101383,1756502136642,524.82882662,0.000199,2]
[382101384,1756502136845,524.82882649,0.00021389,2]
[382101385,1756502137407,524.82882649,0.00022879,2]
[382101391,1756502322991,466.17191929,0.000199,2]
[382101392,1756502323763,466.17191904,0.00021389,2]
[382101393,1756502323910,466.17191904,0.00022879,2]
[382101394,1756502403415,670287.7930738,0.00031023,60]
[382101399,1756502497284,1030.78401046,0.000199,2]
[382101400,1756502497428,1030.78401032,0.00021389,2]
[382101401,1756502498058,1030.78401032,0.00022879,2]
[382101435,1756502683965,927.48266593,0.000199,2]
[382101436,1756502684172,927.48266588,0.00022879,2]
[382101437,1756502684980,927.48266588,0.00021389,2]
[382101454,1756502799215,165.33868,0.00013699,2]
[382101471,1756502857603,856.8057967,0.000199,2]
[382101472,1756502858167,856.80579653,0.00022879,2]
[382101473,1756502858907,856.80579653,0.00021389,2]
[382101489,1756502921697,17588.72270961,0.0001,2]
[382101490,1756502922785,9246.04230355,0.0002,2]
[382101491,1756502923500,1723.59126897,0.0001,2]
[382101499,1756502924223,101109.10694803,0.00019063,2]
[382101554,1756503032412,-321.32,0.00024339,2]
[382101556,1756503032422,-856.80579653,0.00024368,2]
[382101558,1756503032432,-856.80579653,0.00027346,7]
[382101559,1756503032441,-500.0,0.00027397,5]